Cogmind - Beta 13 @@@ ROGUE MODE // 2024.07.01 @ 23:46:16 Player: Malth Result: Destroyed by Y-45 Defender with Heavy Assault Rifle Performance ------------- Evolutions (0) 0 Regions Visited (2) 400 Robots Destroyed (11) 55 Value Destroyed (366) 366 Prototype IDs (0) 0 Alien Tech Used (0) 0 Bonus (0) 0 TOTAL SCORE: 821 Bonus ------- None Cogmind --------- Core Integrity 0/250 Matter 290/300 Energy 221/250 System Corruption 1% Temperature Warm (144) Movement Walking (190) Ox1 Location -10/Mines Parts ------- > --- POWER (1) -------- Ion Engine > --- PROPULSION (2) --- Aluminum Leg > --- UTILITY (2) ------ Small Storage Unit > --- WEAPON (2) ------- Particle Gun Beam Cannon > --- INVENTORY (8) ---- Light Nuclear Core Flight Unit Flight Unit Light Armor Plating Small Laser Small Laser Grenade Launcher Peak State ------------ > --- POWER ------------ Light Ion Engine > --- PROPULSION ------- Aluminum Leg Aluminum Leg > --- UTILITY ---------- Improved Heat Sink Small Storage Unit > --- WEAPON ----------- Small Laser Particle Gun > --- INVENTORY -------- Light Nuclear Core Light Treads Light Treads Aluminum Leg Flight Unit Flight Unit Small Laser Grenade Launcher [Rating: 11] Favorites ----------- Power Ion Engine Engine Ion Engine Propulsion Aluminum Leg Leg Aluminum Leg Utility Small Storage Unit Device Improved Heat Sink Storage Small Storage Unit Weapon Small Laser Energy Gun Small Laser Energy Cannon Beam Cannon Ballistic Gun Assault Rifle Build | -11 -10 -10 ------- Run | Yrd Mat Min Slots Evolved . | . . . Power . | . . . Propulsion . | . . . Utility . | . . . Weapon . | . . . Parts Attached 9 | . 6 3 Power 1 | . 1 . Engine 1 | . 1 . Core . | . . . Reactor . | . . . Propulsion 3 | . 1 2 Treads . | . . . Leg 3 | . 1 2 Wheel . | . . . Hover . | . . . Flight . | . . . Utility 3 | . 3 . Device 3 | . 3 . Storage . | . . . Processor . | . . . Hackware . | . . . Protection . | . . . Artifact . | . . . Weapon 2 | . 1 1 Energy Gun 1 | . 1 . Energy Cannon 1 | . . 1 Ballistic Gun . | . . . Ballistic Cannon . | . . . Launcher . | . . . Special Weapon . | . . . Impact Weapon . | . . . Slashing Weapon . | . . . Piercing Weapon . | . . . Special Melee Weapon . | . . . Unidentified Prototypes . | . . . Parts Lost 3 | . . 3 Power . | . . . Propulsion 2 | . . 2 Utility 1 | . . 1 Weapon . | . . . Highest Loss Streak 3 | . . 3 To Critical Strikes . | . . . Average Slot Usage (%) 94 | . 92 98 Engine 14 | . 14 14 Leg 27 | . 28 27 Device 9 | . 7 13 Storage 14 | . 14 14 Energy Gun 25 | . 24 27 Ballistic Gun 2 | . 3 . Naked Turns . | . . . Heaviest Build 15 | 11 15 15 Greatest Support 20 | 20 20 20 Greatest Overweight (x) . | . . . Average Overweight (x) . | . . . Largest Inventory Capacity 8 | . 8 8 Average Capacity 8 | . 8 8 Most Carried 8 | . 8 8 Average Carried 7 | . 7 7 Final Capacity 8 | 8 8 8 Final Carried 8 | 6 8 7 Class Distribution -------------------- 74% | Mutant 25% | Scavenger-Mutant Dominant Class ---------------- Mutant | -10/Materials Scavenger-Mutant | -10/Mines Resources | -11 -10 -10 ----------- Run | Yrd Mat Min Matter Collected 303 | 200 93 10 Remotely . | . . . Salvage Created 344 | . 250 94 Parts 18 | . 16 2 Haulers Intercepted . | . . . Recyclers Shooed 2 | . 2 . Parts Field Recycled . | . . . Retrieved Matter . | . . . Parts Self-Destructed . | . . . Prevented . | . . . Kills | -11 -10 -10 ------- Run | Yrd Mat Min Combat Hostiles Destroyed 10 | . 7 3 Guns 10 | . 7 3 Classes Destroyed 4 | . 3 1 Watcher 1 | . 1 . Swarmer 2 | . 2 . Grunt 7 | . 5 2 Demolisher 1 | . . 1 Best Kill Streak 5 | . 5 2 Combat Bots Only 4 | . 4 2 Max Kills in Single Turn 1 | . 1 1 Gunslinging . | . . . Exploded . | . . . Melee . | . . . Uniques/NPCs Destroyed . | . . . Combat | -11 -10 -10 -------- Run | Yrd Mat Min Hostile Shots Fired 66 | . 30 36 Missed 15 | . 8 7 Damage Taken 928 | . 294 634 Core 254 | . 58 196 Absorbed by Shields . | . . . Core Remaining (%) 100 | 100 . . Volleys Fired 35 | . 25 10 Largest 2 | . 2 2 Hottest 125 | . 105 125 Shots Fired 70 | . 50 20 Gun 67 | . 50 17 Cannon 3 | . . 3 Launcher . | . . . Special . | . . . Kinetic 11 | . 11 . Thermal 59 | . 39 20 Explosive . | . . . Electromagnetic . | . . . Robot Hit Streak 9 | . 9 6 Robot Miss Streak 4 | . 2 4 Penetration Max . | . . . Secondary Targets 2 | . 2 . Max Gunslinging Chain 1 | . 1 . Shots Hit Robots 47 | . 33 14 Core Hits 21 | . 15 6 Critical Kills . | . . . Critical Parts Destroyed . | . . . Critical Strikes 2 | . . 2 Burn 2 | . . 2 Melee Attacks . | . . . Impact . | . . . Slashing . | . . . Piercing . | . . . Sneak Attacks . | . . . Combat Hostiles . | . . . Follow-up Attacks . | . . . Damage Inflicted 641 | . 451 190 Guns 605 | . 449 156 Cannons 34 | . . 34 Explosions . | . . . Melee . | . . . Ramming 2 | . 2 . Kinetic 90 | . 90 . Thermal 549 | . 359 190 Explosive . | . . . Electromagnetic . | . . . Impact . | . . . Slashing . | . . . Piercing . | . . . Highest Corruption 1 | . 1 1 Average Corruption 1 | . 1 1 Corruption Purged . | . . . Corruption Blocked . | . . . Effects 1 | . . 1 Energy Discharges 1 | . . 1 Overload Shots . | . . . Overflow Damage 3 | . . 3 Projectiles 3 | . . 3 Explosions . | . . . Melee . | . . . Knockbacks . | . . . Impact . | . . . Kinetic . | . . . Secondary . | . . . Self-Inflicted Damage . | . . . Shots . | . . . Rammed . | . . . Targets Rammed 3 | . 2 1 Kicked 3 | . 2 1 Crushed . | . . . Highest Temperature 297 | . 297 135 Average Temperature 80 | . 93 48 Received Heat Transfer 225 | . 90 135 Siege Activations . | . . . Robots Corrupted . | . . . Combat Hostiles . | . . . Parts Fried . | . . . Impact Corruptions . | . . . Robots Melted . | . . . Combat Hostiles . | . . . Parts Melted 2 | . 1 1 Heat Transferred 1438 | . 832 606 Parts Sabotaged . | . . . Parts Stolen . | . . . Parts Stripped . | . . . Power Chain Reactions . | . . . Alert | -11 -10 -10 ------- Run | Yrd Mat Min Peak Influence 279 | . 279 105 Initial 30 | . . 30 Average 144 | . 176 74 Maximum Alert Level 1 | . 1 . Low Security (%) 66 | . 51 100 Level 1 33 | . 48 . Level 2 . | . . . Level 3 . | . . . Level 4 . | . . . Level 5 . | . . . High Security . | . . . Max Security . | . . . Squads Dispatched 1 | . 1 . Investigation . | . . . Extermination . | . . . Reinforcement 1 | . 1 . Assault . | . . . Garrison . | . . . Intercept . | . . . Searches Triggered . | . . . Construction Impeded . | . . . Haulers Reinforced . | . . . Active Scanning Responses . | . . . Cargo Convoy Interrupts . | . . . Stealth | -11 -10 -10 --------- Run | Yrd Mat Min Distress Signals 1 | . 1 . Communications Jammed . | . . . Distress Signals . | . . . Times Spotted 22 | . 14 8 Peak Tracking Total 7 | . 7 4 Tactical Retreats . | . . . Traps | -11 -10 -10 ------- Run | Yrd Mat Min Traps Triggered 2 | . 2 . Indirectly . | . . . Trap Hack Attempts . | . . . Triggered . | . . . Disarmed 6 | . 6 . Reprogrammed . | . . . Reused . | . . . Traps Extracted . | . . . Installed . | . . . Triggered . | . . . Machines | -11 -10 -10 ---------- Run | Yrd Mat Min Machines Disabled . | . . . Max in Single Turn . | . . . Machines Repaired . | . . . Machines Dismantled . | . . . Machines Sabotaged . | . . . Overloaded Fab Kills . | . . . Hacking | -11 -10 -10 --------- Run | Yrd Mat Min Machines Accessed 4 | . 4 . Terminals 4 | . 4 . Fabricators . | . . . Repair Stations . | . . . Recycling Units . | . . . Scanalyzers . | . . . Garrison Access . | . . . Total Hacks 16 | . 16 . Successful 10 | . 10 . Failed 5 | . 5 . Catastrophic 1 | . 1 . Database Lockouts 1 | . 1 . Manual 14 | . 14 . Terminals 16 | . 16 . Fabricators . | . . . Repair Stations . | . . . Recycling Units . | . . . Scanalyzers . | . . . Garrison Access . | . . . Terminal Hacks 4 | . 4 . Part Schematic 1 | . 1 . Alert Level 2 | . 2 . Disarm Traps 1 | . 1 . Fabricator Hacks . | . . . Repair Station Hacks . | . . . Recycling Unit Hacks . | . . . Scanalyzer . | . . . Garrison Access Hacks . | . . . Unauthorized Hacks 6 | . 6 . Terminals 6 | . 6 . Track 3 | . 3 . Botnet 2 | . 2 . Disrupt 1 | . 1 . Fabricators . | . . . Repair Stations . | . . . Recycling Units . | . . . Scanalyzers . | . . . Garrison Access . | . . . Data Cores Recovered . | . . . Used . | . . . Hacking Detections 4 | . 4 . Full Trace Events . | . . . Feedback Events . | . . . Feedback Blocked . | . . . Robot Schematics Acquired . | . . . Robots Built . | . . . Authchips . | . . . Time . | . . . Total Robot Build Rating . | . . . Part Schematics Acquired 1 | . 1 . Parts Built . | . . . Authchips . | . . . Time . | . . . Total Part Build Rating . | . . . Parts Repaired . | . . . Time . | . . . Parts Recycled . | . . . Recycled Matter . | . . . Retrieved Matter . | . . . Retrieved Components . | . . . Parts Scanalyzed . | . . . Part Schematics Acquired . | . . . Parts Damaged . | . . . Bothacking | -11 -10 -10 ------------ Run | Yrd Mat Min Used RIF Installer . | . . . Robots Hacked . | . . . Non-combat . | . . . Combat . | . . . Robot Hacks Applied . | . . . Relay Couplers Released . | . . . Fabnet Peak Effective % . | . . . Robots Rewired . | . . . Allies Hacked . | . . . Hacks Repelled . | . . . Allies | -11 -10 -10 -------- Run | Yrd Mat Min Total Allies . | . . . Largest Group . | . . . Highest-Rated Group . | . . . Highest-Rated Ally . | . . . Total Orders . | . . . Ally Attacks . | . . . Total Damage . | . . . Kills . | . . . Allies Corrupted . | . . . Allies Melted . | . . . Intel | -11 -10 -10 ------- Run | Yrd Mat Min Robot Analysis Total . | . . . Derelict Logs Recovered . | . . . Drone Launches . | . . . Drone Recoveries . | . . . Exploration | -11 -10 -10 ------------- Run | Yrd Mat Min Turns Passed 680 | . 468 212 Spaces Moved 428 | 1 284 143 Core . | . . . Treads . | . . . Legs 428 | 1 284 143 Wheels . | . . . Hover . | . . . Flight . | . . . Fastest Speed 120 | 120 120 120 Average Speed 120 | 120 120 120 Slowest Speed 120 | 120 120 120 Overloaded Moves . | . . . Propulsion Burnouts . | . . . Robots Hopped . | . . . Cave-ins Triggered . | . . . Exploration Rate (%) 29 | 2 51 35 Regions Visited 2 Branch Regions 1 Pre-discovered Areas . | . . . Known Exits Taken . | . . . Unknown Exits Taken 2 | 1 1 . Scrap Searched . | . . . Spaces Dug . | . . . Terrain Destroyed . | . . . Melee . | . . . Projectile . | . . . AOE . | . . . Terrain Rammed . | . . . Walls Destroyed . | . . . Machines Disabled . | . . . Actions | -11 -10 -10 --------- Run | Yrd Mat Min Total 531 | . 366 165 Wait 35 | . 28 7 Move 426 | . 283 143 Hop . | . . . Pick Up 10 | . 10 . Fast Attach 1 | . 1 . Attach 2 | . 1 1 Detach 1 | . 1 . Swap 6 | . 4 2 Drop 12 | . 11 1 Fire 35 | . 25 10 Melee . | . . . Ram . | . . . Kick 3 | . 2 1 Crush . | . . . Escape Stasis . | . . . Rewire . | . . . Trap . | . . . Miscellaneous . | . . . Route ------- -11/Scrapyard -10/Materials (discovered 2 exits: [*Mat] / [*Min]) -10/Mines (discovered 1 exit: [*Mat]) History --------- Turn | Location | Event 1 | -11/Scrapyard | Discovered new exit (range 0) 1 | -11/Scrapyard | Entered Materials 272 | -10/Materials | Discovered new exit (range 16) 300 | -10/Materials | Build established: Mutant 360 | -10/Materials | Central database locked down 395 | -10/Materials | Discovered new exit (range 7) 469 | -10/Materials | Entered Mines 578 | -10/Mines | Received a Rocket Launcher from a helpful Derelict 659 | -10/Mines | Assembled infested the area 663 | -10/Mines | Discovered new exit (range 14) 673 | -10/Mines | Core integrity fell below 50% 676 | -10/Mines | Core integrity fell below 20% 681 | -10/Mines | Destroyed by Y-45 Defender with Heavy Assault Rifle Last Messages --------------- 00676_ Destroyed Shock Absorption System. 00676_ D-53 Grenadier destroyed. 00677_ The unstable cave ceiling collapses. 00678_ D-53 Grenadier heat damages Mni. Grenade Launcher. 00678_ The unstable cave ceiling collapses. 00678_ Aluminum Leg destroyed. 00679_ U-05 Engineer lays Concrete. 00679_ D-53 Grenadier overheating. 00680_ The unstable cave ceiling collapses. 00680_ U-05 Engineer lays Concrete. 00680_ D-53 Grenadier overheating. 00680_ Destroyed Mni. Grenade Launcher. 00680_ D-53 Grenadier suffers critical hit (Burn). 00681_ D-53 Grenadier heat damages Cmb. Airjet, Imp. Light Armor Plating, Shock Absorption System, Cmb. Airjet. 00681_ D-53 Grenadier critical meltdown. 00681_ U-05 Engineer lays Concrete. Map ----- +----------------------------------------------------+ | ?## #?## #??????????????????? | | ??# #??## ?????????????????? | | ??## ##???## ????????????????? | | ???## #?????? ??????????????? | | ????# #?????? ## ##?????????????? | | ????# #?????? ##?###??????????????? | | ????# #?????? #???????????????????? | | ????# #?????? #???????????????????? | | ????# #?????? ##???????????????????? | | ????# #??????###????????????????????? | | ????# #?????????????????????????????? | | ????# #?????????????????????????????? | | ????# ###########???????????????????? | | ????# #???????????????????? | | ????# #???????????????????? | | ????########### #???????????????????? | | ??????????????# #???????????????????? | | ??????????????# #???????????????????? | | ??????????????# ##??????????????????? | | ??????#########u ##?????????????????? | | ?????##" "# #g #?????????????????? | | ?????#!! YY #?????????????????? | | ?????#![ [ #?????????????????? | | ??????# #?????????????????? | | ??????##+ #?????????????????? | | ?????# @ #?????????????????? | | ?????# # #?????????????????? | | ???# ##?????????????????? | | ??# ##??????????????????? | | ??# # ??????????????????? | | ??## #?????????????????? | | ???## % ## # #????????????????? | | ???# <% ? #????????????????? | | ???# ?#????????????????? | | ???# # ## ??????????????????? | | ???# # # ?? ?????????????????? | | ???## #?? ?????????????????? | | ????# ## ?? #????????????????? | | ?????? ?? ??? ##????????????????? | | ????????? ?? ???#???????????????????? | | ????????????? ???????????????????????? | | ?????????????????????????????????????? | | ?????????????????????????????????????? | | ?????????????????????????????????????? | | ?????????????????????????????????????? | | ?????????????????????????????????????? | | | | | | | | | +----------------------------------------------------+ Best States ------------- Heat Dissipation 39 Energy Generation 10 Energy Capacity 250 Matter Stores 300 Matter Capacity 300 Sight Range 16 Terrain Scan Density 10 Evasion (%) 55 Item Schematics ----------------- Flight Unit | -10/Materials | Hacked Robot Schematics ------------------ None Fabricated ------------ Nothing Alien Tech Used ----------------- None Achievements -------------- None Challenges ------------ None Game ------ Seed LegParticleCore Manual? 0 Play Time 00:14:36 Cumulative 404.9 hours Start 2024.07.01 @ 23:34:02 End 2024.07.01 @ 23:46:16 Sessions 1 Manual Loads 0 Difficulty Rogue Special Mode None Game No. 271 Rogue 271 Adventurer 0 Explorer 0 Win Type - Total 49 Types 38/4/4/1/2/0/0/0/0 Lore% 76 Gallery% 75 Achievement% 71 Wizard Run 0 Options --------- Layout 1 ASCII 0 Keyboard 0 Movement Mouse Keybinds 0 Fullscreen 2 Font 24/X11 Map View 50x35 Zoom Use 0% Tactical HUD 1 Map Filters NONE Filters NONE Steam 1 RUN: 16459575-395b-4491-bd82-36a238666d4d